[Event "*** SCC Grand Prix: Titled Tuesday Blitz"]
[Site "Chess.com"]
[Date "2020.08.25"]
[Round "8"]
[White "SergeyKarjakin"]
[Black "Semen_Khanin"]
[Result "1-0"]
[WhiteElo "2983"]
[BlackElo "2787"]
[TimeControl "180+1"]
[EndTime "11:37:05 PDT"]
[Termination "SergeyKarjakin won by resignation"]

1. e4 {[%clk 0:03:00.9]} 1... e5 {[%clk 0:03:00.1]} 2. Nf3 {[%clk 0:03:00.9]}
2... Nc6 {[%clk 0:03:00.5]} 3. Bc4 {[%clk 0:03:01.5]} 3... Bc5 {[%clk 0:03:00]}
4. c3 {[%clk 0:03:02]} 4... Nf6 {[%clk 0:03:00.1]} 5. d3 {[%clk 0:03:02.7]} 5...
d6 {[%clk 0:02:59.9]} 6. O-O {[%clk 0:03:03]} 6... a6 {[%clk 0:02:58.7]} 7. a4
{[%clk 0:03:01.8]} 7... Ba7 {[%clk 0:02:54.9]} 8. Nbd2 {[%clk 0:02:57.4]} 8...
O-O {[%clk 0:02:53.5]} 9. Re1 {[%clk 0:02:51.5]} 9... Kh8 {[%clk 0:02:53.5]} 10.
h3 {[%clk 0:02:30.8]} 10... Ng8 {[%clk 0:02:53]} 11. Nf1 {[%clk 0:02:04.3]}
11... f5 {[%clk 0:02:52.6]} 12. Bg5 {[%clk 0:02:04.6]} 12... Nge7 {[%clk
0:02:42.9]} 13. exf5 {[%clk 0:01:59]} 13... Bxf5 {[%clk 0:02:41.6]} 14. Ng3
{[%clk 0:01:57.8]} 14... d5 {[%clk 0:02:38.7]} 15. Ba2 {[%clk 0:01:47.3]} 15...
Qd6 {[%clk 0:02:01.2]} 16. Nxf5 {[%clk 0:01:24.3]} 16... Rxf5 {[%clk 0:01:59.7]}
17. Bh4 {[%clk 0:01:20.9]} 17... Raf8 {[%clk 0:01:57.2]} 18. Bg3 {[%clk
0:01:16.6]} 18... Qg6 {[%clk 0:01:36.5]} 19. Kh2 {[%clk 0:01:12.9]} 19... Rxf3
{[%clk 0:01:31.7]} 20. gxf3 {[%clk 0:01:13.8]} 20... Qh5 {[%clk 0:01:26.2]} 21.
Kg2 {[%clk 0:00:54.6]} 21... Rf6 {[%clk 0:01:15.4]} 22. f4 {[%clk 0:00:52.4]}
22... Qxd1 {[%clk 0:01:03.1]} 23. Raxd1 {[%clk 0:00:53.3]} 23... exf4 {[%clk
0:01:03.6]} 24. Bh4 {[%clk 0:00:51.2]} 24... g5 {[%clk 0:01:03.8]} 25. Bxg5
{[%clk 0:00:39.2]} 25... Rg6 {[%clk 0:01:04.1]} 26. h4 {[%clk 0:00:35.8]} 26...
h6 {[%clk 0:01:04.5]} 27. Rg1 {[%clk 0:00:36]} 27... hxg5 {[%clk 0:01:03.9]} 28.
Kh3 {[%clk 0:00:34.4]} 28... Bxf2 {[%clk 0:00:59]} 29. Rxg5 {[%clk 0:00:34.8]}
29... Rxg5 {[%clk 0:00:59.1]} 30. hxg5 {[%clk 0:00:34.9]} 30... Ne5 {[%clk
0:00:50.6]} 31. d4 {[%clk 0:00:31.4]} 31... Nc4 {[%clk 0:00:30.2]} 32. Bxc4
{[%clk 0:00:29]} 32... dxc4 {[%clk 0:00:30.5]} 33. Kg4 {[%clk 0:00:29.9]} 33...
Be3 {[%clk 0:00:29.7]} 34. Rh1+ {[%clk 0:00:28]} 34... Kg7 {[%clk 0:00:29.8]}
35. Rh6 {[%clk 0:00:28.6]} 35... Bc1 {[%clk 0:00:25.6]} 36. Rh2 {[%clk
0:00:22.6]} 36... b5 {[%clk 0:00:21.7]} 37. a5 {[%clk 0:00:17.1]} 37... Nd5
{[%clk 0:00:15.3]} 38. Kf5 {[%clk 0:00:16.4]} 38... Ne3+ {[%clk 0:00:15.4]} 39.
Ke4 {[%clk 0:00:16.2]} 39... Kg6 {[%clk 0:00:14.2]} 40. Rh6+ {[%clk 0:00:14.5]}
40... Kxg5 {[%clk 0:00:14.5]} 41. Rxa6 {[%clk 0:00:15.4]} 41... Nf5 {[%clk
0:00:10.8]} 42. Ra8 {[%clk 0:00:14.9]} 42... Nd6+ {[%clk 0:00:10.5]} 43. Kf3
{[%clk 0:00:15.4]} 43... Bxb2 {[%clk 0:00:04.7]} 44. a6 {[%clk 0:00:15.5]} 44...
Bxc3 {[%clk 0:00:02.6]} 45. a7 {[%clk 0:00:16]} 45... Bxd4 {[%clk 0:00:01.3]}
46. Rg8+ {[%clk 0:00:16.5]} 46... Kf6 {[%clk 0:00:01.6]} 47. a8=Q {[%clk
0:00:17.4]} 47... Nf5 {[%clk 0:00:01.2]} 48. Rf8+ {[%clk 0:00:15.4]} 48... Ke5
{[%clk 0:00:02.1]} 49. Qe4+ {[%clk 0:00:14.4]} 1-0

[Event "*** SCC Grand Prix: Titled Tuesday Blitz"]
[Site "Chess.com"]
[Date "2020.08.25"]
[Round "8"]
[White "boasovietica"]
[Black "tylityli"]
[Result "1-0"]
[WhiteElo "2393"]
[BlackElo "2207"]
[TimeControl "180+1"]
[EndTime "11:37:05 PDT"]
[Termination "boasovietica won by resignation"]

1. e4 {[%clk 0:03:00.9]} 1... e5 {[%clk 0:02:53.7]} 2. Nf3 {[%clk 0:03:00.3]}
2... Nc6 {[%clk 0:02:51.9]} 3. Bb5 {[%clk 0:03:00.4]} 3... a6 {[%clk 0:02:51.1]}
4. Ba4 {[%clk 0:03:00.5]} 4... Nf6 {[%clk 0:02:49.8]} 5. O-O {[%clk 0:03:00.1]}
5... b5 {[%clk 0:02:49.6]} 6. Bb3 {[%clk 0:02:59.6]} 6... Be7 {[%clk 0:02:50.5]}
7. d3 {[%clk 0:02:58.8]} 7... O-O {[%clk 0:02:48.8]} 8. Nc3 {[%clk 0:02:57.8]}
8... d6 {[%clk 0:02:48]} 9. a3 {[%clk 0:02:57.3]} 9... Na5 {[%clk 0:02:44.9]}
10. Ba2 {[%clk 0:02:57.2]} 10... c5 {[%clk 0:02:45.3]} 11. Nd5 {[%clk 0:02:57]}
11... Be6 {[%clk 0:02:43.2]} 12. Nxe7+ {[%clk 0:02:41.8]} 12... Qxe7 {[%clk
0:02:41.6]} 13. h3 {[%clk 0:02:41.3]} 13... Bxa2 {[%clk 0:02:39.1]} 14. Rxa2
{[%clk 0:02:42.2]} 14... d5 {[%clk 0:02:35.1]} 15. exd5 {[%clk 0:02:39.3]} 15...
Nxd5 {[%clk 0:02:34.6]} 16. Re1 {[%clk 0:02:39.3]} 16... f6 {[%clk 0:02:32.6]}
17. c4 {[%clk 0:02:20.7]} 17... bxc4 {[%clk 0:02:16.2]} 18. dxc4 {[%clk
0:02:21.6]} 18... Nb6 {[%clk 0:02:11.8]} 19. b4 {[%clk 0:02:15.1]} 19... Naxc4
{[%clk 0:02:05.4]} 20. bxc5 {[%clk 0:02:05.4]} 20... Qxc5 {[%clk 0:02:03.9]} 21.
Rc2 {[%clk 0:02:04.3]} 21... Qb5 {[%clk 0:02:00]} 22. Nh4 {[%clk 0:01:57]} 22...
Qd7 {[%clk 0:01:44.5]} 23. Qf3 {[%clk 0:01:50.8]} 23... Rad8 {[%clk 0:01:40.9]}
24. Nf5 {[%clk 0:01:41.6]} 24... Kh8 {[%clk 0:01:31.6]} 25. a4 {[%clk
0:01:13.5]} 25... Qxa4 {[%clk 0:01:25.9]} 26. Rc3 {[%clk 0:00:44.6]} 26... Qd7
{[%clk 0:01:23.2]} 27. h4 {[%clk 0:00:35]} 27... g6 {[%clk 0:01:21.8]} 28. Nh6
{[%clk 0:00:33.7]} 28... Qd4 {[%clk 0:01:14.3]} 29. h5 {[%clk 0:00:30.3]} 29...
Kg7 {[%clk 0:01:02.7]} 30. hxg6 {[%clk 0:00:27.5]} 30... hxg6 {[%clk 0:01:02.4]}
31. Ng4 {[%clk 0:00:27.7]} 31... Nd5 {[%clk 0:00:53.5]} 32. Bh6+ {[%clk
0:00:26.5]} 32... Kf7 {[%clk 0:00:47.1]} 33. Rd3 {[%clk 0:00:25.7]} 33... Qc5
{[%clk 0:00:28.7]} 34. Bxf8 {[%clk 0:00:24.5]} 34... Kxf8 {[%clk 0:00:28.9]} 35.
Nxf6 {[%clk 0:00:21.7]} 35... Nf4 {[%clk 0:00:15.8]} 36. Rxd8+ {[%clk
0:00:18.9]} 36... Ke7 {[%clk 0:00:15.7]} 37. Rdd1 {[%clk 0:00:11.4]} 37... Kxf6
{[%clk 0:00:15.3]} 38. g3 {[%clk 0:00:11.7]} 38... g5 {[%clk 0:00:14]} 39. gxf4
{[%clk 0:00:11.9]} 39... gxf4 {[%clk 0:00:14.5]} 40. Qh5 {[%clk 0:00:09.1]}
40... Qf8 {[%clk 0:00:12.3]} 41. Rc1 {[%clk 0:00:06.7]} 41... Qg7+ {[%clk
0:00:11.8]} 42. Kh1 {[%clk 0:00:06.9]} 42... Nd2 {[%clk 0:00:11.3]} 43. Rc6+
{[%clk 0:00:06.3]} 43... Ke7 {[%clk 0:00:09.5]} 44. Rc7+ {[%clk 0:00:06.5]}
44... Kf8 {[%clk 0:00:09.5]} 45. Rxg7 {[%clk 0:00:07.1]} 45... Kxg7 {[%clk
0:00:10.4]} 46. Qg5+ {[%clk 0:00:07.1]} 46... Kf7 {[%clk 0:00:10.3]} 47. Qf5+
{[%clk 0:00:07.6]} 47... Kg7 {[%clk 0:00:09.7]} 48. Qxe5+ {[%clk 0:00:08.5]}
48... Kg6 {[%clk 0:00:09.8]} 49. Qd6+ {[%clk 0:00:08.5]} 1-0

[Event "*** SCC Grand Prix: Titled Tuesday Blitz"]
[Site "Chess.com"]
[Date "2020.08.25"]
[Round "8"]
[White "Nemsko"]
[Black "Ashedu66"]
[Result "1-0"]
[WhiteElo "2354"]
[BlackElo "2193"]
[TimeControl "180+1"]
[EndTime "11:37:06 PDT"]
[Termination "Nemsko won on time"]

1. e4 {[%clk 0:02:58.9]} 1... e5 {[%clk 0:02:59.9]} 2. Nf3 {[%clk 0:02:57.8]}
2... Nc6 {[%clk 0:03:00.1]} 3. Bb5 {[%clk 0:02:56.6]} 3... Nge7 {[%clk
0:02:59.6]} 4. c3 {[%clk 0:02:54.7]} 4... g6 {[%clk 0:02:59.5]} 5. O-O {[%clk
0:02:54.1]} 5... Bg7 {[%clk 0:02:59.4]} 6. d4 {[%clk 0:02:54.3]} 6... exd4
{[%clk 0:02:59.5]} 7. cxd4 {[%clk 0:02:55.2]} 7... d5 {[%clk 0:02:59.7]} 8. e5
{[%clk 0:02:53.9]} 8... O-O {[%clk 0:02:59.2]} 9. Nc3 {[%clk 0:02:53.6]} 9...
Bg4 {[%clk 0:02:58.1]} 10. Be3 {[%clk 0:02:52]} 10... f6 {[%clk 0:02:34.8]} 11.
exf6 {[%clk 0:02:44.3]} 11... Bxf6 {[%clk 0:02:33.5]} 12. Be2 {[%clk 0:02:43.6]}
12... Bg7 {[%clk 0:02:20.1]} 13. h3 {[%clk 0:02:43]} 13... Bf5 {[%clk
0:02:16.1]} 14. Rc1 {[%clk 0:02:37.2]} 14... Kh8 {[%clk 0:02:07.5]} 15. Qd2
{[%clk 0:02:34.8]} 15... Qd7 {[%clk 0:02:01.4]} 16. Bh6 {[%clk 0:02:30.5]} 16...
Rae8 {[%clk 0:01:56.4]} 17. Qg5 {[%clk 0:02:16.5]} 17... Bxh6 {[%clk 0:01:48.3]}
18. Qxh6 {[%clk 0:02:16.5]} 18... Ng8 {[%clk 0:01:48]} 19. Qd2 {[%clk
0:02:12.5]} 19... Nf6 {[%clk 0:01:43.4]} 20. Bd3 {[%clk 0:02:05.6]} 20... Ne4
{[%clk 0:01:22.7]} 21. Qh6 {[%clk 0:01:48.8]} 21... Nxc3 {[%clk 0:01:09.5]} 22.
bxc3 {[%clk 0:01:32.4]} 22... Bxd3 {[%clk 0:01:05.1]} 23. Rfe1 {[%clk
0:01:31.8]} 23... Qg7 {[%clk 0:00:58.8]} 24. Qd2 {[%clk 0:01:25.9]} 24... Be4
{[%clk 0:00:53.9]} 25. Ng5 {[%clk 0:01:22.2]} 25... h6 {[%clk 0:00:48]} 26. Nxe4
{[%clk 0:01:19.2]} 26... dxe4 {[%clk 0:00:45.9]} 27. Rb1 {[%clk 0:01:15.2]}
27... b6 {[%clk 0:00:45]} 28. Re3 {[%clk 0:01:12.2]} 28... Kh7 {[%clk
0:00:42.3]} 29. Rbe1 {[%clk 0:01:12.2]} 29... Qf7 {[%clk 0:00:31.3]} 30. Rxe4
{[%clk 0:01:09.8]} 30... Rxe4 {[%clk 0:00:31.3]} 31. Rxe4 {[%clk 0:01:10.1]}
31... Re8 {[%clk 0:00:30.9]} 32. Qe2 {[%clk 0:01:09.3]} 32... Rxe4 {[%clk
0:00:25.7]} 33. Qxe4 {[%clk 0:01:10.2]} 33... Nd8 {[%clk 0:00:21.4]} 34. d5
{[%clk 0:01:09.3]} 34... Nb7 {[%clk 0:00:20.2]} 35. c4 {[%clk 0:01:03.6]} 35...
Nc5 {[%clk 0:00:19.1]} 36. Qe3 {[%clk 0:00:53.8]} 36... Kg7 {[%clk 0:00:16.9]}
37. Qe5+ {[%clk 0:00:52]} 37... Kh7 {[%clk 0:00:16.3]} 38. f3 {[%clk 0:00:51.8]}
38... Qg7 {[%clk 0:00:15.2]} 39. Qf4 {[%clk 0:00:45.9]} 39... Qe7 {[%clk
0:00:14.3]} 40. h4 {[%clk 0:00:41.4]} 40... h5 {[%clk 0:00:12.6]} 41. Qd4 {[%clk
0:00:36.4]} 41... Qd6 {[%clk 0:00:10.2]} 42. Qe3 {[%clk 0:00:28.9]} 42... Kg7
{[%clk 0:00:09]} 43. Qe8 {[%clk 0:00:25.5]} 43... Qf8 {[%clk 0:00:07.9]} 44.
Qe5+ {[%clk 0:00:22.6]} 44... Kh7 {[%clk 0:00:07.9]} 45. Qxc7+ {[%clk
0:00:22.1]} 45... Qg7 {[%clk 0:00:07.4]} 46. d6 {[%clk 0:00:21.7]} 46... Kh6
{[%clk 0:00:06.7]} 47. Qd8 {[%clk 0:00:11.5]} 47... Qd4+ {[%clk 0:00:06.3]} 48.
Kh2 {[%clk 0:00:11.2]} 48... Qe5+ {[%clk 0:00:05]} 49. Kg1 {[%clk 0:00:10.2]}
49... Nd3 {[%clk 0:00:04.6]} 50. Qg5+ {[%clk 0:00:08.3]} 1-0

[Event "*** SCC Grand Prix: Titled Tuesday Blitz"]
[Site "Chess.com"]
[Date "2020.08.25"]
[Round "8"]
[White "Diego_FloresQ"]
[Black "MVM2008"]
[Result "1-0"]
[WhiteElo "2405"]
[BlackElo "2233"]
[TimeControl "180+1"]
[EndTime "11:37:10 PDT"]
[Termination "Diego_FloresQ won by checkmate"]

1. e4 {[%clk 0:02:24.9]} 1... c5 {[%clk 0:02:58.8]} 2. Nf3 {[%clk 0:02:22.8]}
2... e6 {[%clk 0:02:57.3]} 3. d4 {[%clk 0:02:21]} 3... cxd4 {[%clk 0:02:58.2]}
4. Nxd4 {[%clk 0:02:20.8]} 4... a6 {[%clk 0:02:58.8]} 5. Nc3 {[%clk 0:02:18.6]}
5... b5 {[%clk 0:02:57.4]} 6. g3 {[%clk 0:02:18.9]} 6... Bb7 {[%clk 0:02:56.7]}
7. Bg2 {[%clk 0:02:18.4]} 7... d6 {[%clk 0:02:56.4]} 8. O-O {[%clk 0:02:16]}
8... Qc7 {[%clk 0:02:54.7]} 9. Re1 {[%clk 0:01:51.5]} 9... Be7 {[%clk
0:02:45.2]} 10. a4 {[%clk 0:01:47.3]} 10... b4 {[%clk 0:02:41.8]} 11. Na2 {[%clk
0:01:47.7]} 11... Nf6 {[%clk 0:02:37.6]} 12. Bg5 {[%clk 0:01:11]} 12... h6
{[%clk 0:02:25.8]} 13. Bxf6 {[%clk 0:01:07.5]} 13... Bxf6 {[%clk 0:02:25.8]} 14.
Nxb4 {[%clk 0:01:08]} 14... O-O {[%clk 0:02:25.1]} 15. c3 {[%clk 0:01:06.7]}
15... Nd7 {[%clk 0:02:22.7]} 16. Nd3 {[%clk 0:01:04.6]} 16... Nc5 {[%clk
0:02:20.5]} 17. Nxc5 {[%clk 0:00:59.9]} 17... dxc5 {[%clk 0:02:19.1]} 18. Nc2
{[%clk 0:00:54.9]} 18... Rad8 {[%clk 0:02:14]} 19. Qe2 {[%clk 0:00:47.2]} 19...
Rd7 {[%clk 0:01:57.3]} 20. e5 {[%clk 0:00:45]} 20... Bxg2 {[%clk 0:01:45.3]} 21.
exf6 {[%clk 0:00:26.5]} 21... Qb7 {[%clk 0:01:37.3]} 22. fxg7 {[%clk 0:00:22.4]}
22... Rfd8 {[%clk 0:01:36.3]} 23. Ne3 {[%clk 0:00:20.4]} 23... Bf3 {[%clk
0:01:29.7]} 24. Qc4 {[%clk 0:00:19.7]} 24... Rd2 {[%clk 0:01:22.6]} 25. b4
{[%clk 0:00:14.9]} 25... cxb4 {[%clk 0:01:14.1]} 26. cxb4 {[%clk 0:00:15.8]}
26... R8d4 {[%clk 0:00:59.2]} 27. Qc5 {[%clk 0:00:13.4]} 27... Kxg7 {[%clk
0:00:52.9]} 28. b5 {[%clk 0:00:11.5]} 28... Rd8 {[%clk 0:00:27.4]} 29. b6 {[%clk
0:00:07]} 29... Kg8 {[%clk 0:00:16.1]} 30. a5 {[%clk 0:00:06.8]} 30... Rc8
{[%clk 0:00:13.2]} 31. Qe5 {[%clk 0:00:07.1]} 31... Bh1 {[%clk 0:00:05.9]} 32.
Qf6 {[%clk 0:00:06.3]} 32... Rd3 {[%clk 0:00:04.3]} 33. f3 {[%clk 0:00:03.7]}
33... Rcd8 {[%clk 0:00:03.3]} 34. Qxh6 {[%clk 0:00:03.9]} 34... Bxf3 {[%clk
0:00:02.5]} 35. Qg5+ {[%clk 0:00:04.3]} 35... Kf8 {[%clk 0:00:02.6]} 36. Ra2
{[%clk 0:00:04.4]} 36... Rd2 {[%clk 0:00:02.6]} 37. Rxd2 {[%clk 0:00:04.5]}
37... Rxd2 {[%clk 0:00:03.5]} 38. Qh6+ {[%clk 0:00:04.3]} 38... Ke7 {[%clk
0:00:03.7]} 39. Nf5+ {[%clk 0:00:04]} 39... Kd7 {[%clk 0:00:03.5]} 40. Qxd2+
{[%clk 0:00:04]} 40... Bd5 {[%clk 0:00:02.6]} 41. Ne3 {[%clk 0:00:03.6]} 41...
Qc6 {[%clk 0:00:02.2]} 42. Nxd5 {[%clk 0:00:04.5]} 42... exd5 {[%clk 0:00:03.1]}
43. Qf4 {[%clk 0:00:04.8]} 43... Qc5+ {[%clk 0:00:03.2]} 44. Qf2 {[%clk
0:00:05.2]} 44... Qxa5 {[%clk 0:00:03.3]} 45. Qxf7+ {[%clk 0:00:05.8]} 45... Kc6
{[%clk 0:00:03.3]} 46. Qc7+ {[%clk 0:00:06.4]} 46... Kb5 {[%clk 0:00:03.5]} 47.
Rb1+ {[%clk 0:00:06.6]} 47... Ka4 {[%clk 0:00:03.4]} 48. Qc2+ {[%clk 0:00:07.2]}
48... Ka3 {[%clk 0:00:03.8]} 49. Qb3# {[%clk 0:00:07.7]} 1-0

[Event "*** SCC Grand Prix: Titled Tuesday Blitz"]
[Site "Chess.com"]
[Date "2020.08.25"]
[Round "8"]
[White "KatarinaOstojic"]
[Black "jamalm2"]
[Result "1-0"]
[WhiteElo "2310"]
[BlackElo "1952"]
[TimeControl "180+1"]
[EndTime "11:37:10 PDT"]
[Termination "KatarinaOstojic won on time"]

1. e4 {[%clk 0:03:00.9]} 1... c6 {[%clk 0:02:58]} 2. d4 {[%clk 0:03:00.1]} 2...
d5 {[%clk 0:02:57.5]} 3. f3 {[%clk 0:03:00.6]} 3... dxe4 {[%clk 0:02:56.7]} 4.
fxe4 {[%clk 0:03:01.3]} 4... e6 {[%clk 0:02:55.9]} 5. Nf3 {[%clk 0:03:01.2]}
5... Nf6 {[%clk 0:02:48.4]} 6. Bd3 {[%clk 0:03:00.8]} 6... Be7 {[%clk
0:02:47.6]} 7. O-O {[%clk 0:03:00.5]} 7... a6 {[%clk 0:02:43.2]} 8. e5 {[%clk
0:02:59.8]} 8... Nd5 {[%clk 0:02:40.7]} 9. c3 {[%clk 0:02:59.9]} 9... c5 {[%clk
0:02:39.6]} 10. Qe2 {[%clk 0:02:57.3]} 10... Nc6 {[%clk 0:02:34.8]} 11. dxc5
{[%clk 0:02:43.8]} 11... Bxc5+ {[%clk 0:02:32.9]} 12. Kh1 {[%clk 0:02:44.4]}
12... Be7 {[%clk 0:02:23.1]} 13. Be4 {[%clk 0:02:30.4]} 13... Qc7 {[%clk
0:02:14.9]} 14. Bxd5 {[%clk 0:02:26.3]} 14... exd5 {[%clk 0:02:13.8]} 15. Bf4
{[%clk 0:02:27]} 15... Be6 {[%clk 0:02:12.9]} 16. Nbd2 {[%clk 0:02:26.6]} 16...
Qb6 {[%clk 0:02:07.6]} 17. b3 {[%clk 0:02:22.1]} 17... O-O {[%clk 0:02:06]} 18.
Rae1 {[%clk 0:02:12.6]} 18... Rad8 {[%clk 0:01:59.6]} 19. Bg5 {[%clk 0:02:01.1]}
19... h6 {[%clk 0:01:50.9]} 20. Bxe7 {[%clk 0:01:52.7]} 20... Nxe7 {[%clk
0:01:50.3]} 21. Nd4 {[%clk 0:01:53.3]} 21... Qa5 {[%clk 0:01:42.2]} 22. Qe3
{[%clk 0:01:40.5]} 22... Nc6 {[%clk 0:01:32.6]} 23. N2f3 {[%clk 0:01:28.8]}
23... Rc8 {[%clk 0:01:23.8]} 24. Qf4 {[%clk 0:01:19]} 24... Nxd4 {[%clk
0:01:21.6]} 25. cxd4 {[%clk 0:01:17.8]} 25... Qxa2 {[%clk 0:01:15.3]} 26. g4
{[%clk 0:01:08.8]} 26... Rc2 {[%clk 0:01:02]} 27. Qg3 {[%clk 0:00:52]} 27...
Qxb3 {[%clk 0:00:40.7]} 28. h4 {[%clk 0:00:51.2]} 28... Rc3 {[%clk 0:00:37.6]}
29. Qg2 {[%clk 0:00:39.8]} 29... Re3 {[%clk 0:00:26.2]} 30. Rb1 {[%clk
0:00:37.5]} 30... Qd3 {[%clk 0:00:18.8]} 31. Rbd1 {[%clk 0:00:22.1]} 31... Qe4
{[%clk 0:00:17.4]} 32. Kg1 {[%clk 0:00:20.4]} 32... Bxg4 {[%clk 0:00:16.4]} 33.
Nh2 {[%clk 0:00:14.7]} 33... Qxg2+ {[%clk 0:00:12.1]} 34. Kxg2 {[%clk
0:00:14.9]} 34... Bxd1 {[%clk 0:00:11.6]} 35. Rxd1 {[%clk 0:00:15.8]} 35... Re2+
{[%clk 0:00:11.3]} 36. Kg3 {[%clk 0:00:13.5]} 36... Re4 {[%clk 0:00:09.3]} 37.
Nf3 {[%clk 0:00:13.2]} 37... f6 {[%clk 0:00:08.5]} 38. Rc1 {[%clk 0:00:10]}
38... fxe5 {[%clk 0:00:07.7]} 39. dxe5 {[%clk 0:00:10.9]} 39... Re3 {[%clk
0:00:05.7]} 40. Rf1 {[%clk 0:00:11.4]} 40... d4 {[%clk 0:00:04.6]} 41. Kg2
{[%clk 0:00:11.1]} 41... d3 {[%clk 0:00:04.3]} 42. e6 {[%clk 0:00:07.2]} 42...
Rxe6 {[%clk 0:00:01.9]} 43. Rd1 {[%clk 0:00:07.8]} 1-0

[Event "*** SCC Grand Prix: Titled Tuesday Blitz"]
[Site "Chess.com"]
[Date "2020.08.25"]
[Round "8"]
[White "ElGasanov"]
[Black "PavelShkapenko"]
[Result "1-0"]
[WhiteElo "2756"]
[BlackElo "2624"]
[TimeControl "180+1"]
[EndTime "11:37:11 PDT"]
[Termination "ElGasanov won by resignation"]

1. d4 {[%clk 0:03:00.9]} 1... Nf6 {[%clk 0:02:59.7]} 2. c4 {[%clk 0:02:59.6]}
2... e6 {[%clk 0:03:00.2]} 3. Nf3 {[%clk 0:02:56.7]} 3... Bb4+ {[%clk
0:03:00.5]} 4. Nc3 {[%clk 0:02:55.2]} 4... c5 {[%clk 0:02:58.7]} 5. g3 {[%clk
0:02:51.9]} 5... cxd4 {[%clk 0:02:58.1]} 6. Nxd4 {[%clk 0:02:51.8]} 6... Ne4
{[%clk 0:02:58.5]} 7. Qc2 {[%clk 0:02:49.1]} 7... Qa5 {[%clk 0:02:56.1]} 8. Nb5
{[%clk 0:02:42]} 8... a6 {[%clk 0:02:42.5]} 9. Qxe4 {[%clk 0:02:30.6]} 9... axb5
{[%clk 0:02:42.5]} 10. Bd2 {[%clk 0:02:30.4]} 10... bxc4 {[%clk 0:02:36.6]} 11.
Qxc4 {[%clk 0:02:31]} 11... Nc6 {[%clk 0:02:32.8]} 12. a3 {[%clk 0:02:22.1]}
12... d5 {[%clk 0:02:26.1]} 13. Qa2 {[%clk 0:02:16.6]} 13... Be7 {[%clk
0:02:22.9]} 14. Bg2 {[%clk 0:02:14.8]} 14... Qd8 {[%clk 0:02:22.5]} 15. O-O
{[%clk 0:02:13.6]} 15... O-O {[%clk 0:02:22.9]} 16. Rfd1 {[%clk 0:02:12]} 16...
d4 {[%clk 0:01:59.9]} 17. Be1 {[%clk 0:01:42.4]} 17... e5 {[%clk 0:01:59.7]} 18.
Nd5 {[%clk 0:01:36.6]} 18... Be6 {[%clk 0:01:59.6]} 19. e4 {[%clk 0:01:16.8]}
19... Qd7 {[%clk 0:01:42.7]} 20. Rac1 {[%clk 0:01:14.5]} 20... Rfd8 {[%clk
0:01:41.7]} 21. Qb3 {[%clk 0:01:09]} 21... Bf8 {[%clk 0:01:39.2]} 22. Qb5 {[%clk
0:01:03.3]} 22... Bxd5 {[%clk 0:01:25.3]} 23. exd5 {[%clk 0:01:02.9]} 23... Ne7
{[%clk 0:01:25.9]} 24. Qxd7 {[%clk 0:00:53.8]} 24... Rxd7 {[%clk 0:01:25.9]} 25.
Rc5 {[%clk 0:00:54.5]} 25... Nf5 {[%clk 0:01:06.4]} 26. Rb5 {[%clk 0:00:50.4]}
26... Nd6 {[%clk 0:01:06.4]} 27. Rb6 {[%clk 0:00:50.6]} 27... Ra6 {[%clk
0:01:01.5]} 28. Rxa6 {[%clk 0:00:47.1]} 28... bxa6 {[%clk 0:01:02]} 29. Rc1
{[%clk 0:00:45.8]} 29... Ra7 {[%clk 0:00:47.7]} 30. Bb4 {[%clk 0:00:36.9]} 30...
a5 {[%clk 0:00:44.5]} 31. Bxd6 {[%clk 0:00:27.4]} 31... Bxd6 {[%clk 0:00:44.2]}
32. Rc8+ {[%clk 0:00:27.4]} 32... Bf8 {[%clk 0:00:44.8]} 33. g4 {[%clk
0:00:23.5]} 33... g6 {[%clk 0:00:42.5]} 34. g5 {[%clk 0:00:17.9]} 34... Kg7
{[%clk 0:00:42.5]} 35. Be4 {[%clk 0:00:16.2]} 35... Bd6 {[%clk 0:00:40.2]} 36.
Rc6 {[%clk 0:00:15.2]} 36... Rd7 {[%clk 0:00:37.4]} 37. Ra6 {[%clk 0:00:15.3]}
37... Bc7 {[%clk 0:00:36.5]} 38. Ra7 {[%clk 0:00:14.2]} 38... Re7 {[%clk
0:00:36.3]} 39. Kf1 {[%clk 0:00:12.1]} 39... f5 {[%clk 0:00:33.8]} 40. gxf6+
{[%clk 0:00:11.2]} 40... Kxf6 {[%clk 0:00:34]} 41. Ra6+ {[%clk 0:00:11.9]} 41...
Kg5 {[%clk 0:00:31.5]} 42. d6 {[%clk 0:00:12.5]} 42... Bxd6 {[%clk 0:00:30.4]}
43. Rxd6 {[%clk 0:00:13.1]} 43... Re8 {[%clk 0:00:28.4]} 44. Rb6 {[%clk
0:00:10]} 44... Rc8 {[%clk 0:00:27.9]} 45. Bc6 {[%clk 0:00:09.1]} 45... Kf4
{[%clk 0:00:25.7]} 46. Ke2 {[%clk 0:00:08.8]} 46... e4 {[%clk 0:00:26.1]} 47. b4
{[%clk 0:00:08.5]} 47... axb4 {[%clk 0:00:25.7]} 48. axb4 {[%clk 0:00:08.9]}
48... d3+ {[%clk 0:00:25.3]} 49. Kd2 {[%clk 0:00:08.3]} 49... Kf3 {[%clk
0:00:25.8]} 50. b5 {[%clk 0:00:08.5]} 50... Rf8 {[%clk 0:00:21.4]} 51. Rb7
{[%clk 0:00:07.8]} 51... Kxf2 {[%clk 0:00:20.8]} 52. Bxe4 {[%clk 0:00:06.9]}
52... Rf4 {[%clk 0:00:21.1]} 53. Kxd3 {[%clk 0:00:06.2]} 53... Kg1 {[%clk
0:00:20.2]} 54. b6 {[%clk 0:00:06.3]} 54... Rf2 {[%clk 0:00:19.9]} 55. Rxh7
{[%clk 0:00:05.9]} 55... Rb2 {[%clk 0:00:19.7]} 56. b7 {[%clk 0:00:06.1]} 1-0